[Event "2nd Sparkasse Trophy Harrwitz Memorial"]
[Site "Bolzano"]
[Date "2025.04.27"]
[Round "6.3"]
[White "Spornberger, Andre"]
[Black "Hofegger, Jakob"]
[Result "1/2-1/2"]
[Annotator "ChessBase"]
[ECO "A48"]
[WhiteElo "2233"]
[BlackElo "2142"]
[PlyCount "149"]
[EventDate "2025.04.19"]
[EventType "swiss"]
[EventCountry "ITA"]
[SourceTitle "playchess.com"]
[Source "ChessBase"]
[SourceQuality "1"]
[TimeControl "40/5400+30:900+30"]

1. d4 {[%emt 0:00:03]} Nf6 {[%emt 1:31:00]} 2. Bf4 {[%emt 0:00:09]} g6 {[%emt 0:00:00]} 3. e3 {[%emt 0:00:07]} Bg7 {[%emt 0:00:00]} 4. Nf3 {[%emt 0:00:10]} O-O {[%emt 0:00:00]} 5. h3 {[%emt 0:00:13]} d6 {[%emt 0:00:00]} 6. Be2 {[%emt 0:00:16]} Nbd7 {[%emt 0:00:00]} 7. O-O {[%emt 0:00:10]} b6 {[%emt 0:00:00]} 8. Nbd2 {[%emt 0:01:10]} Bb7 {[%emt 0:00:00]} 9. Bh2 {[%emt 0:00:22]} Qe8 {[%emt 0:00:00]} 10. c4 {[%emt 0:01:39]} e5 {[%emt 0:00:00]} 11. Nb3 {[%emt 0:09:11]} Ne4 {[%emt 0:00:00]} 12. Nfd2 {[%emt 0:03:17]} Nxd2 {[%emt 0:00:00]} 13. Qxd2 {[%emt 0:00:44]} Qe7 {[%emt 0:00:00]} 14. Rfe1 {[%emt 0:08:48]} a5 {[%emt 0:00:00]} 15. a4 {[%emt 0:03:30]} Qg5 {[%emt 0:00:00]} 16. Bf1 {[%emt 0:05:08]} exd4 {[%emt 0:00:00]} 17. Nxd4 {[%emt 0:00:19]} Nc5 {[%emt 0:00:00]} 18. Ra3 {[%emt 0:01:08]} Qf6 {[%emt 0:00:00]} 19. Nb5 {[%emt 0:05:46]} Rac8 {[%emt 0:00:00]} 20. Ra2 {[%emt 0:04:33]} Rfe8 {[%emt 0:00:00]} 21. Nc3 {[%emt 0:03:55]} Ne4 {[%emt 0:00:00]} 22. Nxe4 {[%emt 0:01:42]} Bxe4 {[%emt 0:00:00]} 23. Bd3 {[%emt 0:01:36]} Bc6 {[%emt 0:00:00]} 24. b3 {[%emt 0:01:20]} Qg5 {[%emt 0:00:00]} 25. Bf1 {[%emt 0:03:57]} Qc5 {[%emt 0:00:00]} 26. Rc2 {[%emt 0:06:45]} Qa3 {[%emt 0:00:00]} 27. Rb1 {[%emt 0:00:17]} Rcd8 {[%emt 0:00:00]} 28. Bf4 {[%emt 0:03:42]} Bf6 {[%emt 0:00:00]} 29. Be2 {[%emt 0:01:44]} Qc5 {[%emt 0:00:00]} 30. Qd1 {[%emt 0:02:01]} Be5 {[%emt 0:00:00]} 31. Bxe5 {[%emt 0:02:42]} Rxe5 {[%emt 0:00:00]} 32. Bf3 {[%emt 0:00:27]} Rde8 {[%emt 0:00:00]} 33. Rd2 {[%emt 0:03:11]} Bxf3 {[%emt 0:00:00]} 34. Qxf3 {[%emt 0:00:07]} Qb4 {[%emt 0:00:00]} 35. Rd3 {[%emt 0:04:00]} Re4 {[%emt 0:00:00]} 36. Rbd1 {[%emt 0:00:34]} Kg7 {[%emt 0:00:00]} 37. Qe2 {[%emt 0:01:45]} Kg8 {[%emt 0:00:17]} 38. Qd2 {[%emt 0:02:25]} Qxd2 {[%emt 0:00:54]} 39. R1xd2 {[%emt 0:00:06]} Kg7 {[%emt 0:00:45]} 40. Rd4 {[%emt 0:01:13]} Rxd4 {[%emt 0:01:23]} 41. Rxd4 {[%emt 0:15:40]} f5 {[%emt 0:17:50]} 42. g3 {[%emt 0:02:37]} Kf6 {[%emt 0:00:26]} 43. Kg2 {[%emt 0:00:09]} Re5 {[%emt 0:00:30]} 44. Kf3 {[%emt 0:00:41]} Ke6 {[%emt 0:01:01]} 45. Rh4 {[%emt 0:01:48]} h5 {[%emt 0:00:34]} 46. g4 {[%emt 0:04:06]} hxg4+ {[%emt 0:04:19]} 47. hxg4 {[%emt 0:00:09]} fxg4+ {[%emt 0:04:29]} 48. Rxg4 {[%emt 0:06:53]} g5 {[%emt 0:00:00]} 49. Ke2 {[%emt 0:00:00]} d5 {[%emt 0:00:00]} 50. cxd5+ {[%emt 0:00:00]} Rxd5 {[%emt 0:00:00]} 51. Rc4 {[%emt 0:00:00]} Kd6 {[%emt 0:00:00]} 52. f4 {[%emt 0:00:00]} gxf4 {[%emt 0:00:00]} 53. exf4 {[%emt 0:00:00]} b5 {[%emt 0:00:00]} 54. Re4 {[%emt 0:00:00]} Rh5 {[%emt 0:00:30]} 55. Kd3 {[%emt 0:00:50]} bxa4 {[%emt 0:01:40]} 56. bxa4 {[%emt 0:00:41]} Kd5 {[%emt 0:01:20]} 57. Re3 {[%emt 0:01:17]} c5 {[%emt 0:00:30]} 58. Rf3 {[%emt 0:00:22]} Rf5 {[%emt 0:00:34]} 59. Rf1 {[%emt 0:00:41]} c4+ {[%emt 0:02:32]} 60. Kc3 {[%emt 0:00:10]} Kc5 {[%emt 0:00:14]} 61. Rf2 {[%emt 0:00:27]} Rh5 {[%emt 0:00:50]} 62. f5 {[%emt 0:03:46]} Rh3+ {[%emt 0:00:10]} 63. Kb2 {[%emt 0:00:28]} Kb4 {[%emt 0:00:15]} 64. f6 {[%emt 0:00:12]} Rh8 {[%emt 0:00:22]} 65. f7 {[%emt 0:00:05]} Rf8 {[%emt 0:00:05]} 66. Rf5 {[%emt 0:00:07]} c3+ {[%emt 0:01:37]} 67. Kc2 {[%emt 0:00:08]} Kxa4 {[%emt 0:00:30]} 68. Kxc3 {[%emt 0:00:57]} Rc8+ {[%emt 0:00:04]} 69. Kd4 {[%emt 0:03:23]} Rf8 {[%emt 0:00:31]} 70. Kc4 {[%emt 0:00:19]} Rc8+ {[%emt 0:00:35]} 71. Rc5 {[%emt 0:00:55]} Rf8 {[%emt 0:00:27]} 72. Rc7 {[%emt 0:01:20]} Ka3 {[%emt 0:01:11]} 73. Kb5 {[%emt 0:01:16]} a4 {[%emt 0:00:39]} 74. Ra7 {[%emt 0:00:39]} Kb3 {[%emt 0:00:28]} 75. Kc6 {[%emt 0:01:01]} 1/2-1/2

[Event "2nd Sparkasse Trophy Harrwitz Memorial"]
[Site "Bolzano"]
[Date "2025.04.27"]
[Round "6.4"]
[White "Sbarra, Marco"]
[Black "Bodrov, Timofey"]
[Result "0-1"]
[Annotator "NA"]
[ECO "E93"]
[WhiteElo "2125"]
[BlackElo "2113"]
[PlyCount "66"]
[EventDate "2025.04.19"]
[EventType "swiss"]
[EventCountry "ITA"]
[SourceTitle "playchess.com"]
[Source "ChessBase"]
[SourceQuality "1"]
[TimeControl "40/5400+30:900+30"]

1. d4 {[%emt 0:00:03]} Nf6 {[%emt 0:00:40]} 2. c4 {[%emt 0:00:05]} g6 {[%emt 0:00:23]} 3. Nc3 {[%emt 0:00:08]} Bg7 {[%emt 0:00:11]} 4. e4 {[%emt 0:00:09]} d6 {[%emt 0:00:24]} 5. Nf3 {[%emt 0:00:10]} O-O {[%emt 0:00:17]} 6. Be2 {[%emt 0:00:17]} e5 {[%emt 0:00:19]} 7. d5 {[%emt 0:00:09]} Na6 {[%emt 0:00:35]} 8. Bg5 {[%emt 0:02:13]} h6 {[%emt 0:00:51]} 9. Bh4 {[%emt 0:00:25]} g5 {[%emt 0:03:17]} 10. Bg3 {[%emt 0:00:06]} Nh5 {[%emt 0:00:19]} 11. Nd2 {[%emt 0:00:50]} Nf4 {[%emt 0:00:32]} 12. O-O {[%emt 0:07:19]} Nc5 {[%emt 0:01:41]} 13. f3 {[%emt 0:16:59]} a5 {[%emt 0:05:31]} 14. Bf2 {[%emt 0:01:10]} b6 {[%emt 0:01:42]} 15. Bxc5 {[%emt 0:01:24]} bxc5 {[%emt 0:00:24]} 16. Re1 {[%emt 0:02:51]} f5 {[%emt 0:01:20]} 17. exf5 {[%emt 0:09:39]} Bxf5 {[%emt 0:00:47]} 18. Nde4 {[%emt 0:00:10]} h5 {[%emt 0:06:44]} 19. Bd3 {[%emt 0:13:51]} g4 {[%emt 0:07:00]} 20. fxg4 {[%emt 0:00:34]} Bxg4 {[%emt 0:00:47]} 21. Qc2 {[%emt 0:00:52]} Bh6 {[%emt 0:02:15]} 22. Nf2 {[%emt 0:08:37]} Qg5 {[%emt 0:03:56]} 23. Nce4 {[%emt 0:02:45]} Qg7 {[%emt 0:00:34]} 24. Nxg4 {[%emt 0:02:29]} Qxg4 {[%emt 0:00:17]} 25. Re3 {[%emt 0:06:51]} h4 {[%emt 0:00:16]} 26. h3 {[%emt 0:00:25]} Qxg2+ {[%emt 0:01:45]} 27. Qxg2+ {[%emt 0:00:16]} Nxg2 {[%emt 0:00:05]} 28. Kxg2 {[%emt 0:02:05]} Bxe3 {[%emt 0:00:09]} 29. Re1 {[%emt 0:01:27]} Bd4 {[%emt 0:00:23]} 30. Re2 {[%emt 0:00:04]} Kh8 {[%emt 0:02:40]} 31. Kh2 {[%emt 0:03:28]} Rf3 {[%emt 0:00:57]} 32. Bc2 {[%emt 0:00:30]} Rg8 {[%emt 0:00:36]} 33. Rg2 {[%emt 0:00:46]} Rxg2+ {[%emt 0:01:28]} 0-1

[Event "2nd Sparkasse Trophy Harrwitz Memorial"]
[Site "Bolzano"]
[Date "2025.04.27"]
[Round "6.5"]
[White "Gil, Arthur"]
[Black "De Vita, Gianni"]
[Result "1/2-1/2"]
[Annotator "NA"]
[ECO "B33"]
[WhiteElo "1937"]
[BlackElo "1975"]
[PlyCount "147"]
[EventDate "2025.04.19"]
[EventType "swiss"]
[EventCountry "ITA"]
[SourceTitle "playchess.com"]
[Source "ChessBase"]
[SourceQuality "1"]
[TimeControl "40/5400+30:900+30"]

1. e4 {[%emt 0:00:05]} c5 {[%emt 0:00:11]} 2. Nf3 {[%emt 0:00:16]} Nc6 {[%emt 0:00:12]} 3. d4 {[%emt 0:00:38]} cxd4 {[%emt 1:31:37]} 4. Nxd4 {[%emt 1:31:31]} Nf6 {[%emt 0:00:00]} 5. Nc3 {[%emt 0:00:00]} e5 {[%emt 0:00:00]} 6. Ndb5 {[%emt 0:00:00]} d6 {[%emt 0:00:00]} 7. Nd5 {[%emt 0:00:00]} Nxd5 {[%emt 0:00:00]} 8. exd5 {[%emt 0:00:00]} Ne7 {[%emt 0:00:00]} 9. c4 {[%emt 0:00:00]} Ng6 {[%emt 0:00:00]} 10. Bd3 {[%emt 0:00:00]} Be7 {[%emt 0:00:00]} 11. O-O {[%emt 0:00:00]} a6 {[%emt 0:00:00]} 12. Nc3 {[%emt 0:00:00]} O-O {[%emt 0:00:00]} 13. Be3 {[%emt 0:00:00]} Bg5 {[%emt 0:00:00]} 14. Qh5 {[%emt 0:00:00]} Bxe3 {[%emt 0:00:00]} 15. fxe3 {[%emt 0:00:00]} Qb6 {[%emt 0:00:00]} 16. Nd1 {[%emt 0:00:00]} Bd7 {[%emt 0:00:00]} 17. Kh1 {[%emt 0:00:00]} Rae8 {[%emt 0:00:00]} 18. Qe2 {[%emt 0:00:00]} f5 {[%emt 0:00:00]} 19. Rc1 {[%emt 0:00:00]} e4 {[%emt 0:00:00]} 20. Bb1 {[%emt 0:00:00]} Ne5 {[%emt 0:00:00]} 21. Nf2 {[%emt 0:00:00]} Qd8 {[%emt 0:00:00]} 22. b4 {[%emt 0:00:00]} b6 {[%emt 0:00:00]} 23. Qb2 {[%emt 0:00:00]} Qh4 {[%emt 0:00:00]} 24. Qd4 {[%emt 0:00:00]} Rb8 {[%emt 0:00:00]} 25. Rce1 {[%emt 0:00:00]} Rfc8 {[%emt 0:00:00]} 26. Bd3 {[%emt 0:00:00]} Qe7 {[%emt 0:00:00]} 27. Be2 {[%emt 0:00:00]} b5 {[%emt 0:00:00]} 28. cxb5 {[%emt 0:00:00]} Bxb5 {[%emt 0:00:00]} 29. Bxb5 {[%emt 0:00:00]} axb5 {[%emt 0:00:00]} 30. Nh3 {[%emt 0:00:00]} Rc4 {[%emt 0:00:00]} 31. Qd2 {[%emt 0:00:00]} g6 {[%emt 0:00:00]} 32. Nf4 {[%emt 0:00:00]} Rbc8 {[%emt 0:00:00]} 33. Rc1 {[%emt 0:00:00]} Qc7 {[%emt 0:00:00]} 34. Ne2 {[%emt 0:03:26]} Rc2 {[%emt 0:00:00]} 35. Qxc2 {[%emt 0:02:23]} Qxc2 {[%emt 0:00:00]} 36. Rxc2 {[%emt 0:00:09]} Rxc2 {[%emt 0:00:00]} 37. Nd4 {[%emt 0:00:09]} Rxa2 {[%emt 0:00:00]} 38. Nxb5 {[%emt 0:01:54]} Nc4 {[%emt 0:00:00]} 39. Rb1 {[%emt 0:01:34]} Nxe3 {[%emt 0:00:00]} 40. Nxd6 {[%emt 0:00:34]} Nxd5 {[%emt 0:00:00]} 41. b5 {[%emt 0:16:54]} e3 {[%emt 0:00:00]} 42. Kg1 {[%emt 0:00:28]} f4 {[%emt 0:00:00]} 43. Kf1 {[%emt 0:00:32]} Rf2+ {[%emt 0:00:00]} 44. Kg1 {[%emt 0:00:33]} Nb6 {[%emt 0:00:00]} 45. Rc1 {[%emt 0:01:36]} Rd2 {[%emt 0:00:00]} 46. Ne4 {[%emt 0:00:51]} Rb2 {[%emt 0:00:00]} 47. Nd6 {[%emt 0:01:05]} Kf8 {[%emt 0:00:00]} 48. h4 {[%emt 0:01:44]} Ke7 {[%emt 0:00:00]} 49. Ne4 {[%emt 0:01:24]} Rxb5 {[%emt 0:00:00]} 50. Ng5 {[%emt 0:01:11]} h6 {[%emt 0:00:00]} 51. Nf3 {[%emt 0:01:01]} g5 {[%emt 0:00:00]} 52. Nd4 {[%emt 0:00:52]} Rd5 {[%emt 0:00:00]} 53. hxg5 {[%emt 0:00:00]} hxg5 {[%emt 0:00:00]} 54. Nf3 {[%emt 0:00:00]} Nd7 {[%emt 0:00:00]} 55. Kf1 {[%emt 0:00:00]} Nf6 {[%emt 0:00:00]} 56. Rc4 {[%emt 0:00:00]} Ra5 {[%emt 0:00:00]} 57. Rb4 {[%emt 0:00:00]} Kf7 {[%emt 0:00:00]} 58. g3 {[%emt 0:00:00]} fxg3 {[%emt 0:00:00]} 59. Rb3 {[%emt 0:00:00]} g4 {[%emt 0:00:00]} 60. Rxe3 {[%emt 0:00:00]} gxf3 {[%emt 0:00:00]} 61. Rxf3 {[%emt 0:00:00]} Rg5 {[%emt 0:00:00]} 62. Kg2 {[%emt 0:00:00]} Ke6 {[%emt 0:00:00]} 63. Rxg3 {[%emt 0:00:03]} Ra5 {[%emt 0:00:00]} 64. Re3+ {[%emt 0:01:32]} Kf5 {[%emt 0:00:00]} 65. Rf3+ {[%emt 0:00:14]} Kg5 {[%emt 0:00:00]} 66. Rb3 {[%emt 0:00:53]} Ne4 {[%emt 0:00:43]} 67. Rb8 {[%emt 0:00:48]} Kg4 {[%emt 0:00:16]} 68. Rg8+ {[%emt 0:00:19]} Ng5 {[%emt 0:00:01]} 69. Kf2 {[%emt 0:00:18]} Ra3 {[%emt 0:00:16]} 70. Ke2 {[%emt 0:00:16]} Kf4 {[%emt 0:00:40]} 71. Rf8+ {[%emt 0:00:19]} Ke5 {[%emt 0:00:04]} 72. Re8+ {[%emt 0:00:08]} Ne6 {[%emt 0:00:01]} 73. Kf2 {[%emt 0:00:34]} Kf5 {[%emt 0:00:11]} 74. Ke2 {[%emt 0:00:35]} 1/2-1/2

[Event "2nd Sparkasse Trophy Harrwitz Memorial"]
[Site "Bolzano"]
[Date "2025.04.27"]
[Round "6.6"]
[White "Radice, Luca"]
[Black "Di Liberto, Michele"]
[Result "0-1"]
[Annotator "ChessBase"]
[ECO "E24"]
[WhiteElo "1963"]
[BlackElo "2106"]
[PlyCount "70"]
[EventDate "2025.04.19"]
[EventType "swiss"]
[EventCountry "ITA"]
[SourceTitle "playchess.com"]
[Source "ChessBase"]
[SourceQuality "1"]
[TimeControl "40/5400+30:900+30"]

1. d4 {[%emt 0:00:11]} Nf6 {[%emt 0:00:07]} 2. c4 {[%emt 0:00:29]} e6 {[%emt 0:00:06]} 3. Nc3 {[%emt 0:00:45]} Bb4 {[%emt 1:31:47]} 4. a3 {[%emt 0:01:01]} Bxc3+ {[%emt 0:00:00]} 5. bxc3 {[%emt 0:00:05]} b6 {[%emt 0:00:00]} 6. f3 {[%emt 0:00:50]} Bb7 {[%emt 0:00:00]} 7. e4 {[%emt 0:06:26]} d6 {[%emt 0:00:00]} 8. Bd3 {[%emt 0:01:10]} Nbd7 {[%emt 0:00:00]} 9. Ne2 {[%emt 0:00:36]} Qe7 {[%emt 0:00:00]} 10. O-O {[%emt 0:02:58]} e5 {[%emt 0:00:00]} 11. a4 {[%emt 0:06:29]} a5 {[%emt 0:00:00]} 12. c5 {[%emt 0:03:36]} dxc5 {[%emt 0:00:00]} 13. d5 {[%emt 0:01:06]} O-O-O {[%emt 0:00:00]} 14. Bb5 {[%emt 0:04:13]} Ne8 {[%emt 0:00:00]} 15. Qb3 {[%emt 0:11:58]} Nd6 {[%emt 0:00:00]} 16. Be3 {[%emt 0:05:10]} Nxb5 {[%emt 0:00:00]} 17. Qxb5 {[%emt 0:05:03]} g6 {[%emt 0:00:00]} 18. c4 {[%emt 0:04:58]} Nb8 {[%emt 0:00:00]} 19. Nc3 {[%emt 0:02:12]} Ba6 {[%emt 0:00:00]} 20. Qb3 {[%emt 0:00:23]} Qd6 {[%emt 0:00:00]} 21. Rab1 {[%emt 0:05:03]} Kb7 {[%emt 0:00:00]} 22. Rfd1 {[%emt 0:02:52]} Ka7 {[%emt 0:00:00]} 23. Rd2 {[%emt 0:08:19]} Rhg8 {[%emt 0:00:00]} 24. Rdb2 {[%emt 0:04:16]} Nd7 {[%emt 0:00:00]} 25. Bd2 {[%emt 0:00:58]} Rc8 {[%emt 0:00:00]} 26. Nb5+ {[%emt 0:06:38]} Bxb5 {[%emt 0:00:01]} 27. axb5 {[%emt 0:00:07]} Kb7 {[%emt 0:00:56]} 28. Bxa5 {[%emt 0:02:47]} bxa5 {[%emt 0:00:07]} 29. b6 {[%emt 0:00:07]} cxb6 {[%emt 0:01:48]} 30. Qa4 {[%emt 0:00:46]} Ra8 {[%emt 0:00:28]} 31. Rb5 {[%emt 0:00:42]} Kc7 {[%emt 0:00:39]} 32. Kf2 {[%emt 0:00:41]} f5 {[%emt 0:00:18]} 33. Ke3 {[%emt 0:01:02]} fxe4 {[%emt 0:00:49]} 34. fxe4 {[%emt 0:00:07]} Rgf8 {[%emt 0:00:28]} 35. g3 {[%emt 0:00:36]} Rf6 {[%emt 0:00:59]} 0-1